Cogmind - Beta 13 @@@ ROGUE MODE // 2024.04.13 @ 21:42:36 Player: m1m1c Result: Destroyed by Y-45 Defender with Beam Rifle Performance ------------- Evolutions (2) 1000 Regions Visited (4) 800 Robots Destroyed (18) 90 Value Destroyed (215) 215 Prototype IDs (0) 0 Alien Tech Used (0) 0 Bonus (0) 0 TOTAL SCORE: 2105 Bonus ------- None Cogmind --------- Core Integrity 0/550 Matter 235/300 Energy 99/100 System Corruption 0% Temperature Cool (9) Movement Core (50) Location -8/Materials Parts ------- > --- POWER (1) -------- (None) > --- PROPULSION (4) --- (None) > --- UTILITY (4) ------ Improved Targeting Computer > --- WEAPON (2) ------- (None) > --- INVENTORY (5) ---- Ion Engine Carbon-fiber Leg Small Storage Unit ECM Suite ECM Suite Peak State ------------ > --- POWER ------------ Light Ion Engine > --- PROPULSION ------- Flight Unit Flight Unit > --- UTILITY ---------- Improved Targeting Computer > --- WEAPON ----------- Light EM Pulse Cannon Missile Launcher > --- INVENTORY -------- Ion Engine Carbon-fiber Leg Small Storage Unit Tractor Beam [Rating: 10] Favorites ----------- Power Ion Engine Engine Ion Engine Propulsion Flight Unit Leg Aluminum Leg Wheel Compact Wheel Flight Unit Flight Unit Utility Improved Targeting Computer Device ECM Suite Storage Small Storage Unit Processor Improved Targeting Computer Weapon Medium Laser Energy Gun Medium Laser Energy Cannon Light EM Pulse Cannon Ballistic Gun Light Assault Rifle Launcher Missile Launcher Build | -11 -10 -10 -9 -8 ------- Run | Yrd Mat Min Mat Mat Slots Evolved 4 | . . . 2 2 Power . | . . . . . Propulsion 2 | . . . 1 1 Utility 2 | . . . 1 1 Weapon . | . . . . . Parts Attached 34 | 7 . 11 9 7 Power 4 | 1 . 2 1 . Engine 4 | 1 . 2 1 . Core . | . . . . . Reactor . | . . . . . Propulsion 13 | 2 . 5 4 2 Treads . | . . . . . Leg 2 | 2 . . . . Wheel 3 | . . 3 . . Hover . | . . . . . Flight 8 | . . 2 4 2 Utility 5 | 1 . 1 1 2 Device 2 | . . . . 2 Storage 2 | 1 . 1 . . Processor 1 | . . . 1 . Hackware . | . . . . . Protection . | . . . . . Artifact . | . . . . . Weapon 12 | 3 . 3 3 3 Energy Gun 7 | 2 . 3 1 1 Energy Cannon 1 | . . . 1 . Ballistic Gun 2 | 1 . . 1 . Ballistic Cannon . | . . . . . Launcher 2 | . . . . 2 Special Weapon . | . . . . . Impact Weapon . | . . . . . Slashing Weapon . | . . . . . Piercing Weapon . | . . . . . Special Melee Weapon . | . . . . . Unidentified Prototypes . | . . . . . Parts Lost 17 | . 4 . 6 7 Power 3 | . 1 . 1 1 Propulsion 8 | . 2 . 2 4 Utility 1 | . . . . 1 Weapon 5 | . 1 . 3 1 Highest Loss Streak 6 | . 3 . 3 6 To Critical Strikes . | . . . . . Average Slot Usage (%) 31 | . 69 13 35 25 Engine 4 | . 11 1 5 2 Leg 4 | . 24 . . . Flight 7 | . . 4 19 6 Device 1 | . . . . 3 Storage 2 | . 12 . . . Processor 2 | . . . . 9 Energy Gun 5 | . 6 7 7 . Energy Cannon 1 | . . . 2 2 Ballistic Gun 2 | . 12 . 1 . Naked Turns 114 | . 4 109 1 . Heaviest Build 13 | 13 13 7 7 7 Greatest Support 26 | 20 20 26 12 8 Greatest Overweight (x) 1 | 1 1 . 1 1 Average Overweight (x) . | . . . . . Largest Inventory Capacity 8 | 8 8 8 5 5 Average Capacity 5 | 7 7 5 5 5 Most Carried 5 | 2 2 5 5 5 Average Carried 3 | . 2 3 3 4 Final Capacity 8 | 8 5 5 5 5 Final Carried 5 | 2 2 4 4 5 Class Distribution -------------------- 100% | Mutant Dominant Class ---------------- Mutant | -10/Materials Mutant | -10/Mines Mutant | -9/Materials Mutant | -8/Materials Resources | -11 -10 -10 -9 -8 ----------- Run | Yrd Mat Min Mat Mat Matter Collected 427 | 154 28 165 66 14 Remotely . | . . . . . Salvage Created 373 | . 22 200 125 26 Parts 31 | . 1 9 11 10 Haulers Intercepted . | . . . . . Recyclers Shooed . | . . . . . Parts Field Recycled . | . . . . . Retrieved Matter . | . . . . . Parts Self-Destructed . | . . . . . Prevented . | . . . . . Kills | -11 -10 -10 -9 -8 ------- Run | Yrd Mat Min Mat Mat Combat Hostiles Destroyed 11 | . . 3 5 3 Guns 8 | . . 3 5 . AOE 3 | . . . . 3 Classes Destroyed 6 | . 1 3 2 . Worker 2 | . 1 . . 1 Builder 2 | . . 1 . 1 Recycler 2 | . . 2 . . Operator 1 | . . . 1 . Swarmer 10 | . . 3 4 3 Sentry 1 | . . . 1 . Best Kill Streak 4 | . 1 3 3 4 Combat Bots Only 3 | . . 3 3 3 Max Kills in Single Turn 2 | . 1 1 1 2 Gunslinging . | . . . . . Exploded 1 | . . . . 1 Melee . | . . . . . Uniques/NPCs Destroyed . | . . . . . Combat | -11 -10 -10 -9 -8 -------- Run | Yrd Mat Min Mat Mat Hostile Shots Fired 242 | . 73 17 65 87 Missed 100 | . 36 9 17 38 Damage Taken 1900 | . 449 76 641 734 Core 1020 | . 112 48 303 557 Absorbed by Shields . | . . . . . Core Remaining (%) 53 | 100 . 36 24 . Volleys Fired 75 | . 7 34 27 7 Largest 2 | . 2 1 2 1 Hottest 76 | . 60 50 76 56 Shots Fired 86 | . 14 34 31 7 Gun 80 | . 14 34 31 1 Cannon 2 | . . . . 2 Launcher 4 | . . . . 4 Special . | . . . . . Kinetic 13 | . 7 . 6 . Thermal 59 | . . 34 25 . Explosive 4 | . . . . 4 Electromagnetic 10 | . 7 . . 3 Robot Hit Streak 7 | . 2 7 7 2 Robot Miss Streak 6 | . 4 6 2 4 Penetration Max . | . . . . . Secondary Targets . | . . . . . Shots Hit Robots 44 | . 4 17 21 2 Core Hits 30 | . 5 9 10 6 Critical Kills . | . . . . . Critical Parts Destroyed . | . . . . . Critical Strikes 1 | . . 1 . . Burn 1 | . . 1 . . Melee Attacks . | . . . . . Impact . | . . . . . Slashing . | . . . . . Piercing . | . . . . . Sneak Attacks . | . . . . . Combat Hostiles . | . . . . . Follow-up Attacks . | . . . . . Damage Inflicted 916 | . 84 243 348 241 Guns 561 | . 71 230 260 . Cannons . | . . . . . Explosions 302 | . . . 88 214 Melee . | . . . . . Ramming 53 | . 13 13 . 27 Kinetic 70 | . 26 . 44 . Thermal 446 | . . 230 216 . Explosive 302 | . . . 88 214 Electromagnetic 45 | . 45 . . . Impact . | . . . . . Slashing . | . . . . . Piercing . | . . . . . Highest Corruption . | . . . . . Average Corruption . | . . . . . Corruption Purged . | . . . . . Corruption Blocked . | . . . . . Overload Shots . | . . . . . Overflow Damage 7 | . . . 7 . Projectiles . | . . . . . Explosions 7 | . . . 7 . Melee . | . . . . . Knockbacks 1 | . . . . 1 Impact 1 | . . . . 1 Kinetic . | . . . . . Secondary . | . . . . . Self-Inflicted Damage 64 | . . 6 46 12 Shots 1 | . . . 1 . Rammed 8 | . . 2 . 6 Targets Rammed 11 | . 3 2 . 6 Kicked 3 | . 3 . . . Crushed . | . . . . . Highest Temperature 103 | . 103 4 41 14 Average Temperature 22 | . 53 2 13 7 Received Heat Transfer 906 | . 276 9 126 495 Siege Activations . | . . . . . Robots Corrupted . | . . . . . Combat Hostiles . | . . . . . Parts Fried . | . . . . . Impact Corruptions . | . . . . . Robots Melted . | . . . . . Combat Hostiles . | . . . . . Parts Melted 2 | . . 2 . . Heat Transferred 1332 | . . 740 592 . Parts Sabotaged . | . . . . . Parts Stolen . | . . . . . Parts Stripped . | . . . . . Power Chain Reactions . | . . . . . Alert | -11 -10 -10 -9 -8 ------- Run | Yrd Mat Min Mat Mat Peak Influence 303 | . 35 115 257 303 Initial 105 | . . . 44 105 Average 101 | . 18 49 179 174 Maximum Alert Level 1 | . . . 1 1 Low Security (%) 82 | 100 100 100 37 85 Level 1 17 | . . . 62 14 Level 2 . | . . . . . Level 3 . | . . . . . Level 4 . | . . . . . Level 5 . | . . . . . High Security . | . . . . . Max Security . | . . . . . Squads Dispatched 3 | . 1 . 1 1 Investigation . | . . . . . Extermination . | . . . . . Reinforcement 3 | . 1 . 1 1 Assault . | . . . . . Garrison . | . . . . . Intercept . | . . . . . Searches Triggered . | . . . . . Construction Impeded . | . . . . . Haulers Reinforced . | . . . . . Active Scanning Responses . | . . . . . Cargo Convoy Interrupts . | . . . . . Stealth | -11 -10 -10 -9 -8 --------- Run | Yrd Mat Min Mat Mat Distress Signals 1 | . . . 1 . Communications Jammed . | . . . . . Distress Signals . | . . . . . Times Spotted 50 | . 10 5 12 23 Peak Tracking Total 10 | . 8 3 7 10 Tactical Retreats 6 | . . 1 1 4 Traps | -11 -10 -10 -9 -8 ------- Run | Yrd Mat Min Mat Mat Traps Triggered . | . . . . . Indirectly . | . . . . . Trap Hack Attempts . | . . . . . Triggered . | . . . . . Disarmed . | . . . . . Reprogrammed . | . . . . . Reused . | . . . . . Traps Extracted . | . . . . . Installed . | . . . . . Triggered . | . . . . . Machines | -11 -10 -10 -9 -8 ---------- Run | Yrd Mat Min Mat Mat Machines Disabled 3 | . . . 3 . Max in Single Turn 2 | . . . 2 . Machines Repaired . | . . . . . Machines Dismantled . | . . . . . Machines Sabotaged . | . . . . . Overloaded Fab Kills . | . . . . . Hacking | -11 -10 -10 -9 -8 --------- Run | Yrd Mat Min Mat Mat Machines Accessed 3 | . . . 1 2 Terminals 3 | . . . 1 2 Fabricators . | . . . . . Repair Stations . | . . . . . Recycling Units . | . . . . . Scanalyzers . | . . . . . Garrison Access . | . . . . . Total Hacks 7 | . . . 2 5 Successful 3 | . . . . 3 Failed 4 | . . . 2 2 Catastrophic 1 | . . . 1 . Database Lockouts . | . . . . . Manual . | . . . . . Terminals 7 | . . . 2 5 Fabricators . | . . . . . Repair Stations . | . . . . . Recycling Units . | . . . . . Scanalyzers . | . . . . . Garrison Access . | . . . . . Terminal Hacks 3 | . . . . 3 Branch Access Points 1 | . . . . 1 Assault Status 1 | . . . . 1 Registered Components 1 | . . . . 1 Fabricator Hacks . | . . . . . Repair Station Hacks . | . . . . . Recycling Unit Hacks . | . . . . . Scanalyzer . | . . . . . Garrison Access Hacks . | . . . . . Unauthorized Hacks . | . . . . . Terminals . | . . . . . Fabricators . | . . . . . Repair Stations . | . . . . . Recycling Units . | . . . . . Scanalyzers . | . . . . . Garrison Access . | . . . . . Data Cores Recovered 1 | . . . 1 . Used . | . . . . . Hacking Detections 3 | . . . 1 2 Full Trace Events 2 | . . . 1 1 Feedback Events . | . . . . . Feedback Blocked . | . . . . . Robot Schematics Acquired . | . . . . . Robots Built . | . . . . . Authchips . | . . . . . Time . | . . . . . Total Robot Build Rating . | . . . . . Part Schematics Acquired . | . . . . . Parts Built . | . . . . . Authchips . | . . . . . Time . | . . . . . Total Part Build Rating . | . . . . . Parts Repaired . | . . . . . Time . | . . . . . Parts Recycled . | . . . . . Recycled Matter . | . . . . . Retrieved Matter . | . . . . . Retrieved Components . | . . . . . Parts Scanalyzed . | . . . . . Part Schematics Acquired . | . . . . . Parts Damaged . | . . . . . Bothacking | -11 -10 -10 -9 -8 ------------ Run | Yrd Mat Min Mat Mat Used RIF Installer . | . . . . . Robots Hacked . | . . . . . Non-combat . | . . . . . Combat . | . . . . . Robot Hacks Applied . | . . . . . Relay Couplers Released . | . . . . . Fabnet Peak Effective % . | . . . . . Robots Rewired . | . . . . . Allies Hacked . | . . . . . Hacks Repelled . | . . . . . Allies | -11 -10 -10 -9 -8 -------- Run | Yrd Mat Min Mat Mat Total Allies . | . . . . . Largest Group . | . . . . . Highest-Rated Group . | . . . . . Highest-Rated Ally . | . . . . . Total Orders . | . . . . . Ally Attacks . | . . . . . Total Damage . | . . . . . Kills . | . . . . . Allies Corrupted . | . . . . . Allies Melted . | . . . . . Intel | -11 -10 -10 -9 -8 ------- Run | Yrd Mat Min Mat Mat Robot Analysis Total . | . . . . . Derelict Logs Recovered 1 | . . 1 . . Drone Launches . | . . . . . Drone Recoveries . | . . . . . Exploration | -11 -10 -10 -9 -8 ------------- Run | Yrd Mat Min Mat Mat Turns Passed 863 | 74 128 249 195 217 Spaces Moved 1179 | 57 92 335 311 384 Core 477 | 10 15 250 11 191 Treads . | . . . . . Legs 124 | 47 77 . . . Wheels 6 | . . 6 . . Hover . | . . . . . Flight 572 | . . 79 300 193 Fastest Speed 34 | 50 50 37 34 37 Average Speed 53 | 109 114 47 39 46 Slowest Speed 190 | 120 190 100 100 100 Overloaded Moves . | . . . . . Propulsion Burnouts . | . . . . . Robots Hopped 5 | . . 1 3 1 Cave-ins Triggered . | . . . . . Exploration Rate (%) 27 | 4 23 58 21 32 Regions Visited 4 Branch Regions 1 Pre-discovered Areas . | . . . . . Known Exits Taken 1 | . . . 1 . Unknown Exits Taken 3 | 1 1 1 . . Scrap Searched 1 | . . 1 . . Spaces Dug . | . . . . . Terrain Destroyed 47 | . . . 24 23 Melee . | . . . . . Projectile . | . . . . . AOE 47 | . . . 24 23 Terrain Rammed . | . . . . . Walls Destroyed . | . . . . . Machines Disabled . | . . . . . Actions | -11 -10 -10 -9 -8 --------- Run | Yrd Mat Min Mat Mat Total 1317 | 65 101 387 350 414 Wait 1 | . . . . 1 Move 1165 | 56 91 332 304 382 Hop 5 | . . 1 3 1 Pick Up 9 | 2 . . 3 4 Fast Attach 25 | 6 . 7 7 5 Attach 8 | . . 4 2 2 Detach 8 | . . 6 1 1 Swap 1 | 1 . . . . Drop 9 | . . 1 3 5 Fire 75 | . 7 34 27 7 Melee . | . . . . . Ram 8 | . . 2 . 6 Kick 3 | . 3 . . . Crush . | . . . . . Escape Stasis . | . . . . . Rewire . | . . . . . Trap . | . . . . . Miscellaneous . | . . . . . Route ------- -11/Scrapyard -10/Materials -10/Mines -9/Materials (discovered 2 exits: *Mat x2) -8/Materials History --------- Turn | Location | Event 12 | -11/Scrapyard | Discovered new exit (range 15) 75 | -11/Scrapyard | Entered Materials 199 | -10/Materials | Released all parts (2) 200 | -10/Materials | Discovered new exit (range 6) 203 | -10/Materials | Entered Mines 205 | -10/Mines | Learned location of 1 exit from Materials 213 | -10/Mines | Core integrity fell below 50% 224 | -10/Mines | Lost 3 parts (1p2n) 253 | -10/Mines | Discovered new exit (range 7) 341 | -10/Mines | Build established: Mutant 452 | -10/Mines | Entered Materials 452 | -9/Materials | Evolved 2 slots: Propulsion x1, Utility x1 453 | -9/Materials | Identified exit to Materials 573 | -9/Materials | Lost 3 parts (2n1w) 578 | -9/Materials | Core integrity fell below 50% 645 | -9/Materials | Discovered exit to Materials (range 4) 647 | -9/Materials | Entered another Materials area 647 | -8/Materials | Evolved 2 slots: Propulsion x1, Utility x1 759 | -8/Materials | Core integrity fell below 50% 780 | -8/Materials | Lost 6 parts (1p4n1w) 857 | -8/Materials | Core integrity fell below 20% 864 | -8/Materials | Destroyed by Y-45 Defender with Beam Rifle Last Messages --------------- Slammed into W-25 Informer. Destabilizing: System interference. Imp. Targeting Computer temporarily disabled. Slammed into K-01 Serf. K-01 Serf destroyed. Acquired 14 matter. Acquired ECM Suite. Dropped Tractor Beam. Acquired ECM Suite. Dropped ECM Suite. K-01 Serf collects debris. Critical hit (Burn: +37). ECM Suite destroyed. Slammed into G-47 Trooper. Imp. Targeting Computer broken. Destabilizing: Short circuit. Critical hit (Burn: +37). Slammed into G-47 Trooper. G-47 Trooper knocked back. Slammed into G-47 Trooper. Map ----- +----------------------------------------------------+ | ????????????????????????# """"" # # | | ????????????????????????# """"" # # | | ????????????????????????# """ # # | | ????????????????????????# #######+### # | | ????????????????????????###########= ## ## | | ??????????????????????????????????# ## # | | ??????????????????????????????????# """ !## # | | ??????????????????????????????????# """"" ## + | | ??????????????????????????????????# """"" ## # | | ??????????????????????????????????# """"" + # | | ??????????????????????????????????# """ ## # | | ??????????????????????????????????# ## ## | | ??????????????????????????????????# ## ## | | ??????????????????????????????????########### # | | ??????????????##???????###################### # | | ????????????### ####???# #] | | ????????????# #???# #] | | ????????????# "" #???# # | | ????????????# ""S #???# #####/################ | | ????????????# "" #???# #?? ?????????????# | | ????????????#! #???# # ???????????# | | ?????????????? ????# # ]] ?????????# | | ??????????????##+##????# # ][ ??######## | | ??????????????# ###### g # ] ?+ | | ??????????????# #! ?????## | | ??????????????# #######@########+######??????# ! | | ??????????????## ##???? ???????????????????# | | ???????????????# #??? Y "?????????????????# | | ???????????????# #?# Y"#??????????????## | | ???????????????# #?# ]! ""#??????????? + | | ???????????????#/#?# !! #??????????"" #### | | ??????????????? ?# !! #??????????"?"???# | | ???????????????" ?# #???????????"????## | | ???????????????" ?####### #####?????????????????# | | ???????????????" ????????##??????????????????#### | | ??????????????? ????????????????????????????#// | | ??????????????? * ???????????????????????????#/! | | ???????????????? ???????????????????????????#/! | | ???????????????? ????????????????????????????# | | ????????????????""????????????????????????????# | | ??????????????????????????????????????????????# | | ??????????????????????????????????????????????# | | ??????????????????????????????????????????????# | | ??????????????????????????????????????????????# | | ??????????????????????????????????????????????#### | | ?????????????????????????????????????????????????# | | ?????????????????????????????????????????????????? | | ?????????????????????????????????????????????????? | | ?????????????????????????????????????????????????? | | ?????????????????????????????????????????????????? | +----------------------------------------------------+ Best States ------------- Heat Dissipation 31 Energy Generation 10 Energy Capacity 250 Matter Stores 300 Matter Capacity 300 Sight Range 16 Terrain Scan Density 10 ECM Strength 2 Evasion (%) 62 Targeting Accuracy 6 Item Schematics ----------------- None Robot Schematics ------------------ None Fabricated ------------ Nothing Alien Tech Used ----------------- None Achievements -------------- None Challenges ------------ None Game ------ Seed WarpMetafieldMatter Manual? 0 Play Time 00:10:52 Cumulative 11.2 hours Start 2024.04.13 @ 21:32:18 End 2024.04.13 @ 21:42:36 Sessions 1 Manual Loads 0 Difficulty Rogue Special Mode None Game No. 45 Rogue 45 Adventurer 0 Explorer 0 Win Type - Total 0 Types 0/0/0/0/0/0/0/0/0 Lore% 11 Gallery% 16 Achievement% 14 Wizard Run 0 Options --------- Layout 1 ASCII 1 Keyboard 0 Movement Arrows Keybinds 0 Fullscreen 1 Font 24/Smallcaps Map View 50x35 Zoom Use 0% Tactical HUD 0 Map Filters NONE Filters NONE Steam 1 RUN: c0da6ca9-0570-4020-bd67-1ae8dfff0c86